[Event "7. Arber-Senioren-Cup 2019"]
[Site "Bodenmais"]
[Date "2019.07.27"]
[Round "1.15"]
[White "Godoj, Veit"]
[Black "Moser, Andreas"]
[Result "1-0"]
[ECO "B07"]
[WhiteElo "1995"]
[BlackElo "1693"]
[Annotator "NA RC"]
[PlyCount "129"]
[EventDate "2019.07.27"]
[EventType "swiss"]
[EventCountry "GER"]
[SourceTitle "playchess.com"]
[Source "ChessBase"]
[SourceQuality "1"]
[TimeControl "5400+30"]

1. d4 {[%emt 0:00:00]} Nf6 {[%emt 0:00:00]} 2. Nc3 {[%emt 0:00:00]} g6 {[%emt 0:00:00]} 3. e4 {[%emt 0:00:00]} d6 {[%emt 0:00:00]} 4. Be2 {[%emt 0:00:00]} Bg7 {[%emt 0:00:00]} 5. g4 {[%emt 0:00:00]} h6 {[%emt 0:00:00]} 6. Be3 {[%emt 0:00:00]} c6 {[%emt 0:00:00]} 7. h3 {[%emt 0:00:00]} Qa5 {[%emt 0:00:00]} 8. Qd2 {[%emt 0:00:00]} b5 {[%emt 0:00:00]} 9. Bf3 {[%emt 0:00:00]} Bb7 {[%emt 0:00:00]} 10. Nge2 {[%emt 0:00:00]} b4 {[%emt 0:00:00]} 11. Nd1 {[%emt 0:00:00]} c5 {[%emt 0:00:00]} 12. d5 {[%emt 0:00:00]} Nbd7 {[%emt 0:00:00]} 13. Bg2 {[%emt 0:00:01]} Ne5 {[%emt 0:00:00]} 14. O-O {[%emt 0:15:17]} Nc4 {[%emt 0:00:00]} 15. Qc1 {[%emt 0:00:09]} Nxe3 {[%emt 0:00:00]} 16. Nxe3 {[%emt 0:00:31]} Ba6 {[%emt 0:00:00]} 17. Re1 {[%emt 0:02:51]} Bxe2 {[%emt 0:00:00]} 18. Rxe2 {[%emt 0:00:11]} Nd7 {[%emt 0:01:01]} 19. f4 {[%emt 0:08:55]} Rb8 {[%emt 0:05:51]} 20. Bf1 {[%emt 0:04:14]} O-O {[%emt 0:05:59]} 21. Nc4 {[%emt 0:00:33]} Qc7 {[%emt 0:01:26]} 22. Kh1 {[%emt 0:07:10]} a5 {[%emt 0:06:59]} 23. Rb1 {[%emt 0:10:55]} Ra8 {[%emt 0:04:59]} 24. Qe3 {[%emt 0:02:54]} Nb6 {[%emt 0:03:14]} 25. Rg2 {[%emt 0:01:36]} Nxc4 {[%emt 0:04:27]} 26. Bxc4 {[%emt 0:00:06]} f6 {[%emt 0:05:45]} 27. h4 {[%emt 0:07:08]} Kh8 {[%emt 0:14:53]} 28. Qd3 {[%emt 0:07:43]} Qc8 {[%emt 0:05:01]} 29. f5 {[%emt 0:00:59]} g5 {[%emt 0:01:30]} 30. Rh2 {[%emt 0:00:38]} a4 {[%emt 0:07:23]} 31. Kg2 {[%emt 0:05:44]} b3 {[%emt 0:01:38]} 32. cxb3 {[%emt 0:02:14]} a3 {[%emt 0:01:26]} 33. bxa3 {[%emt 0:00:17]} Rxa3 {[%emt 0:00:02]} 34. Qd2 {[%emt 0:01:57]} Qa8 {[%emt 0:00:34]} 35. Rb2 {[%emt 0:02:05]} Qa5 {[%emt 0:03:35]} 36. Qxa5 {[%emt 0:01:39]} Rxa5 {[%emt 0:00:02]} 37. a4 {[%emt 0:00:13]} Rb8 {[%emt 0:00:49]} 38. Kf3 {[%emt 0:00:57]} Ra7 {[%emt 0:03:04]} 39. Bb5 {[%emt 0:03:22]} Kh7 {[%emt 0:02:55]} 40. Ke3 {[%emt 0:01:15]} Kg8 {[%emt 0:01:55]} 41. Kd3 {[%emt 0:00:10]} Kf8 {[%emt 0:00:30]} 42. Kc4 {[%emt 0:00:25]} Kf7 43. Ra2 Rh8 {[%emt 0:02:18]} 44. h5 {[%emt 0:03:12]} Rc8 {[%emt 0:03:01]} 45. Rhc2 {[%emt 0:00:40]} Ra5 {[%emt 0:02:13]} 46. b4 {[%emt 0:00:46]} Ra7 {[%emt 0:00:59]} 47. bxc5 {[%emt 0:00:17]} Rcc7 {[%emt 0:04:15]} 48. Kb4 {[%emt 0:01:10]} Bf8 {[%emt 0:00:17]} 49. cxd6 {[%emt 0:00:44]} exd6 {[%emt 0:00:09]} 50. Rc6 {[%emt 0:02:00]} Be7 {[%emt 0:00:52]} 51. Rac2 {[%emt 0:00:13]} Bd8 {[%emt 0:00:28]} 52. R2c4 {[%emt 0:02:08]} Ke7 {[%emt 0:01:25]} 53. Rxc7+ {[%emt 0:07:58]} Bxc7 {[%emt 0:01:10]} 54. Bc6 {[%emt 0:01:00]} Bb6 {[%emt 0:01:09]} 55. Rc2 {[%emt 0:00:35]} Bc5+ {[%emt 0:01:23]} 56. Rxc5 {[%emt 0:01:12]} dxc5+ {[%emt 0:00:04]} 57. Kxc5 {[%emt 0:00:05]} Kd8 {[%emt 0:05:02]} 58. Kd6 {[%emt 0:00:08]} Re7 {[%emt 0:00:23]} 59. a5 {[%emt 0:00:48]} Rxe4 {[%emt 0:00:08]} 60. a6 {[%emt 0:00:01]} Re7 {[%emt 0:00:10]} 61. Bb7 {[%emt 0:00:57]} Rd7+ {[%emt 0:02:00]} 62. Kc6 {[%emt 0:00:25]} Rc7+ {[%emt 0:03:07]} 63. Kb6 {[%emt 0:00:01]} Rc1 {[%emt 0:01:30]} 64. a7 {[%emt 0:00:04]} Rb1+ {[%emt 0:00:16]} 65. Kc6 {[%emt 0:00:05]} 1-0

[Event "7. Arber-Senioren-Cup 2019"]
[Site "Bodenmais"]
[Date "2019.07.27"]
[Round "1.16"]
[White "Loibl, Johann"]
[Black "Kurka, Dieter"]
[Result "0-1"]
[ECO "B20"]
[WhiteElo "1760"]
[BlackElo "2006"]
[Annotator "NA RC"]
[PlyCount "57"]
[EventDate "2019.07.27"]
[EventType "swiss"]
[EventCountry "GER"]
[SourceTitle "playchess.com"]
[Source "ChessBase"]
[SourceQuality "1"]
[TimeControl "5400+30"]

1. e4 {[%emt 0:00:00]} c5 {[%emt 0:00:00]} 2. b4 {[%emt 0:00:00]} cxb4 {[%emt 0:00:00]} 3. a3 {[%emt 0:00:00]} e6 {[%emt 0:00:00]} 4. axb4 {[%emt 0:00:00]} Bxb4 {[%emt 0:00:00]} 5. c3 {[%emt 0:00:00]} Be7 {[%emt 0:00:00]} 6. d4 {[%emt 0:00:00]} d6 {[%emt 0:00:00]} 7. Nf3 {[%emt 0:00:00]} Nd7 {[%emt 0:00:00]} 8. Bb5 {[%emt 0:00:00]} Ngf6 {[%emt 0:00:00]} 9. Nbd2 {[%emt 0:00:00]} O-O {[%emt 0:00:00]} 10. O-O {[%emt 0:00:00]} a6 {[%emt 0:00:00]} 11. Qc2 {[%emt 0:00:00]} Rb8 {[%emt 0:00:00]} 12. Bd3 {[%emt 0:00:00]} e5 {[%emt 0:00:00]} 13. Nc4 {[%emt 0:00:00]} b5 {[%emt 0:00:00]} 14. Ne3 {[%emt 0:06:12]} g6 {[%emt 0:00:00]} 15. Ba3 {[%emt 0:12:35]} Re8 {[%emt 0:00:00]} 16. Rfb1 {[%emt 0:02:53]} Bb7 {[%emt 0:04:10]} 17. Ng5 {[%emt 0:14:33]} d5 {[%emt 0:09:18]} 18. exd5 {[%emt 0:12:03]} Nxd5 {[%emt 0:02:35]} 19. Nh3 {[%emt 0:21:09]} N7b6 {[%emt 0:19:22]} 20. Qd2 {[%emt 0:06:44]} Bf6 {[%emt 0:10:56]} 21. Bb4 {[%emt 0:05:18]} Nxc3 {[%emt 0:02:58]} 22. Bxc3 {[%emt 0:03:07]} exd4 {[%emt 0:00:43]} 23. Ng4 {[%emt 0:02:05]} dxc3 {[%emt 0:01:08]} 24. Qc2 {[%emt 0:02:03]} Bg7 {[%emt 0:00:45]} 25. f4 {[%emt 0:03:44]} Qd4+ {[%emt 0:03:20]} 26. Kh1 {[%emt 0:00:12]} Nd5 27. f5 {[%emt 0:01:23]} Qxg4 {[%emt 0:01:35]} 28. fxg6 {[%emt 0:01:07]} hxg6 {[%emt 0:00:18]} 29. Rf1 0-1

[Event "7. Arber-Senioren-Cup 2019"]
[Site "Bodenmais"]
[Date "2019.07.27"]
[Round "1.17"]
[White "Puehn, Georg"]
[Black "Otto, Klaus"]
[Result "1-0"]
[ECO "C00"]
[WhiteElo "1990"]
[BlackElo "1725"]
[Annotator "NA RC"]
[PlyCount "91"]
[EventDate "2019.07.27"]
[EventType "swiss"]
[EventCountry "GER"]
[SourceTitle "playchess.com"]
[Source "ChessBase"]
[SourceQuality "1"]
[TimeControl "5400+30"]

1. e4 {[%emt 0:00:00]} e6 {[%emt 0:00:00]} 2. d3 {[%emt 0:00:00]} Nf6 {[%emt 0:00:00]} 3. Nf3 {[%emt 0:00:00]} d5 {[%emt 0:00:00]} 4. Nbd2 {[%emt 0:00:00]} c5 {[%emt 0:00:00]} 5. g3 {[%emt 0:00:00]} Nc6 {[%emt 0:00:00]} 6. Bg2 {[%emt 0:00:00]} Be7 {[%emt 0:00:00]} 7. O-O {[%emt 0:00:00]} dxe4 {[%emt 0:00:00]} 8. dxe4 {[%emt 0:00:00]} O-O {[%emt 0:00:00]} 9. c3 {[%emt 0:00:00]} Nd7 {[%emt 0:00:00]} 10. Re1 {[%emt 0:00:00]} Nde5 {[%emt 0:00:00]} 11. Qe2 {[%emt 0:00:00]} Nd3 {[%emt 0:00:00]} 12. Rd1 {[%emt 0:00:00]} Nxc1 {[%emt 0:00:00]} 13. Raxc1 {[%emt 0:00:00]} Qc7 {[%emt 0:00:00]} 14. e5 {[%emt 0:00:00]} Rd8 {[%emt 0:00:00]} 15. Nc4 {[%emt 0:00:00]} b6 {[%emt 0:00:00]} 16. Rxd8+ {[%emt 0:00:00]} Bxd8 {[%emt 0:00:00]} 17. Nd6 {[%emt 0:00:00]} Rb8 {[%emt 0:00:00]} 18. Nxc8 {[%emt 0:00:00]} Rxc8 {[%emt 0:00:00]} 19. Re1 {[%emt 0:00:00]} Be7 {[%emt 0:00:00]} 20. Nd2 {[%emt 0:03:51]} Rd8 {[%emt 0:02:48]} 21. f4 {[%emt 0:05:39]} Qd7 {[%emt 0:04:47]} 22. Ne4 {[%emt 0:03:49]} Nb8 {[%emt 0:12:28]} 23. Qg4 {[%emt 0:03:30]} Kh8 {[%emt 0:05:10]} 24. h4 {[%emt 0:04:30]} Qe8 {[%emt 0:04:44]} 25. Rd1 {[%emt 0:10:51]} Rxd1+ {[%emt 0:01:18]} 26. Qxd1 {[%emt 0:00:05]} Qd8 {[%emt 0:00:26]} 27. Qxd8+ {[%emt 0:10:38]} Bxd8 {[%emt 0:00:12]} 28. Nd6 {[%emt 0:00:38]} Kg8 {[%emt 0:00:18]} 29. Kf2 {[%emt 0:02:33]} Kf8 {[%emt 0:00:17]} 30. Be4 {[%emt 0:01:18]} h6 {[%emt 0:02:05]} 31. Bb7 {[%emt 0:10:45]} Bc7 {[%emt 0:01:50]} 32. Nb5 {[%emt 0:00:31]} Bd8 {[%emt 0:01:51]} 33. Nxa7 {[%emt 0:00:10]} Ke7 {[%emt 0:00:35]} 34. Nc6+ {[%emt 0:04:01]} Nxc6 {[%emt 0:00:21]} 35. Bxc6 {[%emt 0:00:03]} f6 {[%emt 0:02:00]} 36. Kf3 {[%emt 0:01:36]} Bc7 {[%emt 0:05:16]} 37. Ke4 {[%emt 0:00:32]} f5+ {[%emt 0:00:46]} 38. Kf3 {[%emt 0:01:14]} Kf7 {[%emt 0:01:16]} 39. h5 {[%emt 0:00:32]} Ke7 {[%emt 0:02:00]} 40. Ke3 {[%emt 0:03:52]} Kd8 {[%emt 0:01:58]} 41. Kd3 {[%emt 0:02:48]} Kc8 {[%emt 0:00:18]} 42. Kc4 {[%emt 0:00:26]} Bd8 {[%emt 0:00:27]} 43. Kb5 {[%emt 0:02:09]} Kc7 {[%emt 0:01:12]} 44. a4 {[%emt 0:02:31]} Be7 {[%emt 0:03:06]} 45. Bg2 {[%emt 0:04:21]} Bf8 {[%emt 0:01:46]} 46. Bf1 {[%emt 0:00:29]} 1-0

[Event "7. Arber-Senioren-Cup 2019"]
[Site "Bodenmais"]
[Date "2019.07.27"]
[Round "1.18"]
[White "Trinkl, Andreas"]
[Black "Nickl, Klaus"]
[Result "0-1"]
[ECO "C10"]
[WhiteElo "1620"]
[BlackElo "1988"]
[Annotator "NA RC"]
[PlyCount "118"]
[EventDate "2019.07.27"]
[EventType "swiss"]
[EventCountry "GER"]
[SourceTitle "playchess.com"]
[Source "ChessBase"]
[SourceQuality "1"]
[TimeControl "5400+30"]

1. e4 {[%emt 0:00:00]} e6 {[%emt 0:00:00]} 2. d4 {[%emt 0:00:00]} d5 {[%emt 0:00:00]} 3. Nd2 {[%emt 0:00:00]} dxe4 {[%emt 0:00:00]} 4. Nxe4 {[%emt 0:00:00]} Nd7 {[%emt 0:00:00]} 5. Nf3 {[%emt 0:00:00]} Ngf6 {[%emt 0:00:00]} 6. Ng3 {[%emt 0:00:00]} c5 {[%emt 0:00:00]} 7. c3 {[%emt 0:00:00]} cxd4 {[%emt 0:00:00]} 8. cxd4 {[%emt 0:00:00]} Bb4+ {[%emt 0:00:00]} 9. Bd2 {[%emt 0:00:00]} Qa5 {[%emt 0:00:00]} 10. Bd3 {[%emt 0:00:00]} Bxd2+ {[%emt 0:00:00]} 11. Qxd2 {[%emt 0:00:00]} Qxd2+ {[%emt 0:00:00]} 12. Nxd2 {[%emt 0:00:00]} b6 {[%emt 0:00:00]} 13. Nge4 {[%emt 0:00:00]} Ke7 {[%emt 0:00:00]} 14. O-O {[%emt 0:00:00]} Bb7 {[%emt 0:00:00]} 15. f3 {[%emt 0:00:00]} Rac8 {[%emt 0:00:00]} 16. Rac1 {[%emt 0:00:00]} Nd5 {[%emt 0:00:00]} 17. Rfe1 {[%emt 0:15:35]} Nf4 {[%emt 0:00:00]} 18. Bf1 {[%emt 0:01:18]} f5 {[%emt 0:00:00]} 19. Nc3 {[%emt 0:04:52]} Nf6 {[%emt 0:00:00]} 20. g3 {[%emt 0:08:14]} N4d5 {[%emt 0:00:00]} 21. Nxd5+ {[%emt 0:01:15]} Nxd5 {[%emt 0:00:00]} 22. a3 {[%emt 0:04:33]} g5 {[%emt 0:00:00]} 23. Bd3 {[%emt 0:05:37]} Rxc1 {[%emt 0:00:00]} 24. Rxc1 {[%emt 0:00:02]} Rc8 {[%emt 0:00:00]} 25. Rxc8 {[%emt 0:03:58]} Bxc8 {[%emt 0:00:00]} 26. Kf2 {[%emt 0:00:38]} Nc7 {[%emt 0:01:08]} 27. Ke3 {[%emt 0:06:06]} Bb7 {[%emt 0:04:04]} 28. Nb1 {[%emt 0:04:23]} Nd5+ {[%emt 0:04:11]} 29. Kf2 {[%emt 0:02:04]} h6 {[%emt 0:01:59]} 30. Nd2 {[%emt 0:05:31]} Nf6 {[%emt 0:03:53]} 31. Ke3 {[%emt 0:10:28]} f4+ {[%emt 0:02:57]} 32. Kf2 {[%emt 0:01:51]} Nd5 {[%emt 0:08:20]} 33. Nf1 {[%emt 0:01:48]} Kf6 {[%emt 0:04:01]} 34. g4 {[%emt 0:03:50]} e5 {[%emt 0:03:07]} 35. dxe5+ {[%emt 0:01:31]} Kxe5 {[%emt 0:00:03]} 36. Ke2 {[%emt 0:01:00]} Kd4 {[%emt 0:02:49]} 37. Nd2 {[%emt 0:01:33]} Ne3 {[%emt 0:01:37]} 38. Nb3+ {[%emt 0:01:17]} Ke5 {[%emt 0:00:26]} 39. Nd2 {[%emt 0:00:28]} Bd5 {[%emt 0:00:54]} 40. Be4 {[%emt 0:05:15]} Bxe4 {[%emt 0:02:27]} 41. Nxe4 {[%emt 0:03:05]} Nc4 {[%emt 0:00:13]} 42. b3 {[%emt 0:08:09]} Nxa3 {[%emt 0:00:15]} 43. Nc3 {[%emt 0:00:50]} Nc2 {[%emt 0:00:51]} 44. Kf2 {[%emt 0:02:49]} a5 {[%emt 0:03:16]} 45. Na4 {[%emt 0:02:02]} b5 {[%emt 0:00:01]} 46. Nc3 {[%emt 0:00:11]} Nd4 {[%emt 0:00:01]} 47. h4 {[%emt 0:01:34]} b4 {[%emt 0:00:02]} 48. Ne4 {[%emt 0:00:38]} Nxb3 {[%emt 0:00:05]} 49. hxg5 {[%emt 0:00:33]} hxg5 {[%emt 0:00:02]} 50. Nxg5 {[%emt 0:00:35]} Nc5 {[%emt 0:00:02]} 51. Ke2 {[%emt 0:00:59]} b3 {[%emt 0:00:01]} 52. Kd2 {[%emt 0:00:20]} a4 {[%emt 0:00:05]} 53. Kc3 {[%emt 0:00:38]} a3 {[%emt 0:00:02]} 54. Nf7+ {[%emt 0:00:43]} Ke6 {[%emt 0:00:10]} 55. Ng5+ {[%emt 0:00:02]} Kf6 {[%emt 0:00:14]} 56. Ne4+ {[%emt 0:00:05]} Nxe4+ {[%emt 0:00:04]} 57. Kxb3 {[%emt 0:00:06]} Nd2+ {[%emt 0:00:12]} 58. Kxa3 {[%emt 0:00:03]} Nxf3 {[%emt 0:00:05]} 59. Kb2 {[%emt 0:00:13]} Kg5 {[%emt 0:00:01]} 0-1

[Event "7. Arber-Senioren-Cup 2019"]
[Site "Bodenmais"]
[Date "2019.07.27"]
[Round "1.19"]
[White "Limberg, Siegfried"]
[Black "Sagner, Guenter"]
[Result "1-0"]
[ECO "D05"]
[WhiteElo "1983"]
[BlackElo "1696"]
[Annotator "NA RC"]
[PlyCount "32"]
[EventDate "2019.07.27"]
[EventType "swiss"]
[EventCountry "GER"]
[SourceTitle "playchess.com"]
[Source "ChessBase"]
[SourceQuality "1"]
[TimeControl "5400+30"]

1. d4 {[%emt 0:00:00]} Nf6 {[%emt 0:00:00]} 2. Nf3 {[%emt 0:00:00]} e6 {[%emt 0:00:00]} 3. e3 {[%emt 0:00:00]} c5 {[%emt 0:00:00]} 4. Bd3 {[%emt 0:00:00]} d5 {[%emt 0:00:00]} 5. c3 {[%emt 0:00:00]} Nc6 {[%emt 0:00:00]} 6. Nbd2 {[%emt 0:00:00]} Qc7 {[%emt 0:00:00]} 7. O-O {[%emt 0:00:00]} e5 {[%emt 0:00:00]} 8. e4 {[%emt 0:00:00]} exd4 {[%emt 0:00:00]} 9. cxd4 {[%emt 0:00:00]} cxd4 {[%emt 0:00:00]} 10. exd5 {[%emt 0:00:00]} Nxd5 {[%emt 0:00:00]} 11. Nb3 {[%emt 0:00:00]} Bg4 {[%emt 0:00:00]} 12. Qe1+ {[%emt 0:00:00]} Be7 {[%emt 0:00:00]} 13. Nfxd4 {[%emt 0:00:00]} O-O {[%emt 0:00:00]} 14. Nxc6 {[%emt 0:00:00]} bxc6 {[%emt 0:00:00]} 15. Bd2 {[%emt 0:00:00]} Bf6 {[%emt 0:00:34]} 16. Qe4 Rfe8 1-0

[Event "7. Arber-Senioren-Cup 2019"]
[Site "Bodenmais"]
[Date "2019.07.27"]
[Round "1.20"]
[White "Voeller, Lothar"]
[Black "Neubauer, Jaroslaus"]
[Result "0-1"]
[ECO "A17"]
[WhiteElo "1666"]
[BlackElo "2014"]
[Annotator "NA RC"]
[PlyCount "90"]
[EventDate "2019.07.27"]
[EventType "swiss"]
[EventCountry "GER"]
[SourceTitle "playchess.com"]
[Source "ChessBase"]
[SourceQuality "1"]
[TimeControl "5400+30"]

1. c4 {[%emt 0:00:00]} Nf6 {[%emt 0:00:00]} 2. Nc3 {[%emt 0:00:00]} e6 {[%emt 0:00:00]} 3. Nf3 {[%emt 0:00:00]} Bb4 {[%emt 0:00:00]} 4. e3 {[%emt 0:00:00]} O-O {[%emt 0:00:00]} 5. Be2 {[%emt 0:00:00]} b6 {[%emt 0:00:00]} 6. O-O {[%emt 0:00:00]} Bb7 {[%emt 0:00:00]} 7. d4 {[%emt 0:00:00]} d5 {[%emt 0:00:00]} 8. a3 {[%emt 0:00:00]} Bxc3 {[%emt 0:00:00]} 9. bxc3 {[%emt 0:00:00]} dxc4 {[%emt 0:00:00]} 10. Bxc4 {[%emt 0:00:00]} Nbd7 {[%emt 0:00:00]} 11. Be2 Re8 12. h3 {[%emt 0:00:00]} e5 {[%emt 0:00:00]} 13. Qb3 {[%emt 0:00:00]} e4 {[%emt 0:00:00]} 14. Bc4 {[%emt 0:00:00]} exf3 {[%emt 0:00:00]} 15. Bxf7+ {[%emt 0:00:00]} Kh8 {[%emt 0:00:00]} 16. Bxe8 Qxe8 17. g4 {[%emt 0:00:00]} Qe4 {[%emt 0:00:00]} 18. Qb1 {[%emt 0:00:00]} Qe6 {[%emt 0:00:00]} 19. Qf5 {[%emt 0:00:00]} Qxf5 {[%emt 0:00:00]} 20. gxf5 {[%emt 0:00:00]} Be4 {[%emt 0:00:00]} 21. Kh2 {[%emt 0:00:00]} Bxf5 {[%emt 0:00:00]} 22. Rg1 {[%emt 0:00:00]} Ne4 {[%emt 0:00:00]} 23. Rg3 {[%emt 0:00:00]} Nxg3 {[%emt 0:00:00]} 24. Kxg3 {[%emt 0:00:00]} Be4 {[%emt 0:00:00]} 25. Bb2 {[%emt 0:00:00]} Rf8 {[%emt 0:00:00]} 26. Rg1 {[%emt 0:00:26]} Rf5 {[%emt 0:00:00]} 27. Kh2 {[%emt 0:01:39]} Rb5 {[%emt 0:00:00]} 28. Bc1 {[%emt 0:00:37]} Nf6 {[%emt 0:00:00]} 29. c4 {[%emt 0:00:20]} Rh5 {[%emt 0:00:00]} 30. c5 {[%emt 0:01:03]} b5 {[%emt 0:00:00]} 31. Bb2 {[%emt 0:02:09]} c6 {[%emt 0:00:00]} 32. Kg3 {[%emt 0:12:46]} Rg5+ {[%emt 0:00:00]} 33. Kh2 {[%emt 0:00:12]} Rg2+ {[%emt 0:00:00]} 34. Rxg2 {[%emt 0:00:24]} fxg2 {[%emt 0:00:00]} 35. Bc1 {[%emt 0:01:48]} g5 {[%emt 0:00:00]} 36. Bd2 {[%emt 0:01:59]} h5 {[%emt 0:00:00]} 37. f4 {[%emt 0:02:15]} g4 {[%emt 0:00:00]} 38. hxg4 {[%emt 0:03:38]} Nxg4+ {[%emt 0:00:00]} 39. Kg1 {[%emt 0:00:20]} h4 {[%emt 0:00:00]} 40. Be1 {[%emt 0:00:46]} h3 {[%emt 0:00:00]} 41. Bg3 {[%emt 0:01:17]} a5 {[%emt 0:00:23]} 42. f5 {[%emt 0:00:33]} h2+ {[%emt 0:00:33]} 43. Bxh2 {[%emt 0:00:19]} Nxh2 {[%emt 0:00:15]} 44. Kxh2 {[%emt 0:00:06]} b4 {[%emt 0:01:10]} 45. axb4 {[%emt 0:00:39]} axb4 {[%emt 0:00:30]} 0-1

[Event "7. Arber-Senioren-Cup 2019"]
[Site "Bodenmais"]
[Date "2019.07.27"]
[Round "1.21"]
[White "Steiger, Michael"]
[Black "Riess, Michael"]
[Result "1-0"]
[ECO "A38"]
[WhiteElo "2016"]
[BlackElo "1686"]
[Annotator "NA RC"]
[PlyCount "55"]
[EventDate "2019.07.27"]
[EventType "swiss"]
[EventCountry "GER"]
[SourceTitle "playchess.com"]
[Source "ChessBase"]
[SourceQuality "1"]
[TimeControl "5400+30"]

1. c4 {[%emt 0:00:00]} c5 {[%emt 0:00:00]} 2. Nc3 {[%emt 0:00:00]} Nf6 {[%emt 0:00:00]} 3. g3 {[%emt 0:00:00]} g6 {[%emt 0:00:00]} 4. Bg2 {[%emt 0:00:00]} Bg7 {[%emt 0:00:00]} 5. Nf3 {[%emt 0:00:00]} Nc6 {[%emt 0:00:00]} 6. d4 {[%emt 0:00:00]} cxd4 {[%emt 0:00:00]} 7. Nxd4 {[%emt 0:00:00]} Nxd4 {[%emt 0:00:00]} 8. Qxd4 {[%emt 0:00:00]} O-O {[%emt 0:00:00]} 9. O-O {[%emt 0:00:00]} d6 {[%emt 0:00:00]} 10. Qd3 {[%emt 0:00:00]} a6 {[%emt 0:00:00]} 11. Rd1 {[%emt 0:00:00]} Qc7 {[%emt 0:00:00]} 12. Bg5 {[%emt 0:00:00]} h6 {[%emt 0:00:00]} 13. Bxf6 {[%emt 0:00:00]} Bxf6 {[%emt 0:00:00]} 14. Nd5 {[%emt 0:00:00]} Qd8 {[%emt 0:00:00]} 15. Nxf6+ {[%emt 0:00:00]} exf6 {[%emt 0:00:00]} 16. Qxd6 {[%emt 0:00:00]} Qxd6 {[%emt 0:00:00]} 17. Rxd6 {[%emt 0:00:00]} Kh8 {[%emt 0:00:00]} 18. Rad1 {[%emt 0:00:00]} Be6 {[%emt 0:00:00]} 19. b3 {[%emt 0:00:00]} Rab8 {[%emt 0:00:00]} 20. Bd5 {[%emt 0:00:00]} Rfe8 {[%emt 0:00:00]} 21. Bxe6 {[%emt 0:00:00]} Rxe6 {[%emt 0:00:00]} 22. Rxe6 {[%emt 0:00:00]} fxe6 {[%emt 0:00:00]} 23. Rd7 {[%emt 0:00:00]} Kg8 {[%emt 0:00:00]} 24. Kg2 {[%emt 0:00:00]} h5 {[%emt 0:00:00]} 25. Kf3 {[%emt 0:00:00]} b5 {[%emt 0:00:00]} 26. c5 {[%emt 0:00:00]} a5 {[%emt 0:00:00]} 27. c6 {[%emt 0:01:01]} Rc8 {[%emt 0:00:00]} 28. c7 {[%emt 0:00:00]} 1-0

[Event "7. Arber-Senioren-Cup 2019"]
[Site "Bodenmais"]
[Date "2019.07.27"]
[Round "1.22"]
[White "Yon, Gregory"]
[Black "Gerl, Hans"]
[Result "0-1"]
[ECO "A45"]
[WhiteElo "1658"]
[BlackElo "1955"]
[Annotator "NA RC"]
[PlyCount "94"]
[EventDate "2019.07.27"]
[EventType "swiss"]
[EventCountry "GER"]
[SourceTitle "playchess.com"]
[Source "ChessBase"]
[SourceQuality "1"]
[TimeControl "5400+30"]

1. d4 {[%emt 0:00:00]} Nf6 {[%emt 0:00:00]} 2. Bf4 {[%emt 0:00:00]} d6 {[%emt 0:00:00]} 3. Nf3 {[%emt 0:00:00]} g6 {[%emt 0:00:00]} 4. Nc3 {[%emt 0:00:00]} Nbd7 {[%emt 0:00:00]} 5. Qd2 {[%emt 0:00:00]} h6 {[%emt 0:00:00]} 6. e4 {[%emt 0:00:00]} Bg7 {[%emt 0:00:00]} 7. Be2 {[%emt 0:00:00]} b6 {[%emt 0:00:00]} 8. O-O-O {[%emt 0:00:00]} Bb7 {[%emt 0:00:00]} 9. e5 {[%emt 0:00:00]} Ne4 {[%emt 0:00:00]} 10. Nxe4 {[%emt 0:00:00]} Bxe4 {[%emt 0:00:00]} 11. exd6 {[%emt 0:00:00]} cxd6 {[%emt 0:00:00]} 12. Bd3 {[%emt 0:00:00]} Bxd3 13. Qxd3 {[%emt 0:00:00]} O-O {[%emt 0:00:00]} 14. h4 {[%emt 0:00:00]} Nf6 {[%emt 0:00:00]} 15. h5 {[%emt 0:00:00]} gxh5 {[%emt 0:00:00]} 16. Qd2 {[%emt 0:00:00]} Kh7 {[%emt 0:03:54]} 17. Nh4 {[%emt 0:00:00]} e6 {[%emt 0:04:42]} 18. f3 {[%emt 0:00:00]} Nd5 {[%emt 0:04:27]} 19. g4 {[%emt 0:00:00]} Nxf4 {[%emt 0:03:30]} 20. Qxf4 {[%emt 0:00:00]} Qg5 {[%emt 0:00:32]} 21. Ng2 {[%emt 0:00:01]} Qxf4+ {[%emt 0:01:30]} 22. Nxf4 {[%emt 0:00:03]} hxg4 {[%emt 0:00:55]} 23. fxg4 {[%emt 0:00:10]} Bf6 {[%emt 0:00:56]} 24. Nh3 {[%emt 0:08:50]} Rg8 {[%emt 0:05:37]} 25. Rdf1 {[%emt 0:02:02]} Kg7 {[%emt 0:03:48]} 26. Rf4 Bg5 {[%emt 0:05:52]} 27. Nxg5 {[%emt 0:07:59]} hxg5 {[%emt 0:00:12]} 28. Rf3 {[%emt 0:00:10]} Rh8 {[%emt 0:01:10]} 29. Rhf1 {[%emt 0:00:08]} Raf8 {[%emt 0:00:15]} 30. b4 {[%emt 0:01:49]} Rh4 31. Rg1 {[%emt 0:00:59]} Kg6 {[%emt 0:01:43]} 32. Ra3 {[%emt 0:00:25]} Ra8 {[%emt 0:00:51]} 33. Rc3 {[%emt 0:01:20]} f5 {[%emt 0:02:16]} 34. Rc6 {[%emt 0:00:48]} Rd8 {[%emt 0:00:48]} 35. Re1 {[%emt 0:02:34]} Kf6 {[%emt 0:02:54]} 36. gxf5 {[%emt 0:01:24]} exf5 {[%emt 0:00:39]} 37. d5 {[%emt 0:00:23]} f4 {[%emt 0:01:04]} 38. Re6+ {[%emt 0:00:29]} Kf5 {[%emt 0:00:33]} 39. Rc7 {[%emt 0:01:47]} Rf8 {[%emt 0:02:32]} 40. Rxa7 {[%emt 0:01:36]} f3 {[%emt 0:00:28]} 41. Ra3 {[%emt 0:00:21]} f2 {[%emt 0:01:04]} 42. Rf3+ {[%emt 0:02:28]} Rf4 {[%emt 0:00:19]} 43. Rxf2 {[%emt 0:00:58]} Rxf2 {[%emt 0:00:20]} 44. Rxd6 {[%emt 0:00:09]} Rc8 {[%emt 0:01:14]} 45. Rxb6 {[%emt 0:00:40]} Rcxc2+ {[%emt 0:00:29]} 46. Kb1 {[%emt 0:00:28]} Rcd2 {[%emt 0:00:26]} 47. Rc6 {[%emt 0:00:28]} Rf1+ {[%emt 0:01:57]} 0-1